bitfinex/quotes_SOLUSD_20230702
["timestamp","ask_amount","ask_price","bid_price","bid_amount"]
[1688287976555,22.056,19.179,19.17,208.75294715]
[1688287976755,22.056,19.179,19.17,230.81794715]
[1688287977451,22.056,19.179,19.171,368.75294715]
[1688287977970,55.0,19.178,19.171,368.75294715]
[1688287978169,22.058,19.176,19.171,368.75294715]
[1688287979266,22.058,19.176,19.171,181.86699016]
[1688287979472,75.0,19.175,19.15,123.005]
[1688287979769,215.398,19.178,19.16,19.43]
[1688287979770,160.399,19.178,19.16,19.43]
[1688287979969,22.063,19.173,19.165,22.071]
[1688287980162,26.12882997,19.185,19.165,22.071]
[1688287980364,26.74683568,19.189,19.165,22.071]
[1688287980365,78.835,19.179,19.165,22.071]
[1688287980869,78.835,19.179,19.164,22.071]
[1688287981074,78.835,19.179,19.165,22.07]
[1688287981568,55.0,19.178,19.165,22.07]
[1688287981772,22.061,19.175,19.165,22.07]
[1688287982274,55.0,19.178,19.152,45.42598653]
[1688287982460,22.061,19.175,19.165,22.07]
[1688287983970,55.0,19.174,19.165,22.07]
[1688287984272,22.064,19.172,19.165,22.07]
[1688287984971,103.603,19.179,19.165,78.892]
[1688287985164,55.0,19.178,19.165,78.892]
[1688287985369,22.063,19.172,19.165,22.07]
[1688287985876,55.0,19.178,19.165,22.07]
[1688287986064,22.063,19.173,19.165,22.07]
[1688287986381,22.061,19.175,19.165,22.07]
[1688287986770,22.059,19.176,19.165,125.748]
[1688287987069,22.06,19.175,19.165,125.748]
[1688287987274,22.06,19.175,19.165,22.07]
[1688287987466,22.06,19.175,19.164,22.072]
[1688287988176,22.066,19.17,19.159,78.915]
[1688287988573,56.805,19.171,19.159,78.915]
[1688287988956,55.0,19.17,19.159,78.915]
[1688287989170,22.068,19.168,19.159,78.915]
[1688287989375,22.067,19.169,19.159,78.915]
[1688287989573,22.066,19.17,19.159,78.915]
[1688287989768,22.066,19.169,19.159,78.915]
[1688287990278,22.066,19.17,19.159,78.915]
[1688287990465,113.603,19.171,19.159,78.915]
[1688287991379,22.066,19.17,19.159,78.915]
[1688287992085,22.066,19.17,19.159,22.077]
[1688287996864,22.072,19.165,19.159,22.078]
[1688287997065,56.812,19.169,19.159,22.078]
[1688287997278,22.071,19.166,19.159,22.078]
[1688288000779,22.071,19.166,19.158,22.078]
[1688288000982,182.611,19.161,19.151,92.0304]
[1688288001187,182.611,19.161,19.147,22.091]
[1688288001496,20.0,19.165,19.147,22.091]
[1688288001497,78.929,19.157,19.147,22.091]
[1688288001701,78.929,19.157,19.141,149.4092]
[1688288001876,55.0,19.156,19.144,22.094]
[1688288002076,78.944,19.153,19.144,22.094]
[1688288002287,78.944,19.153,19.13,41.58]
[1688288002492,78.944,19.153,19.144,22.095]
[1688288002681,78.943,19.153,19.144,22.094]
[1688288003188,78.943,19.153,19.139,92.5172]
[1688288003391,78.943,19.153,19.143,22.095]
[1688288003995,22.086,19.153,19.143,22.095]
[1688288004492,56.846,19.157,19.143,22.095]
[1688288004677,22.085,19.154,19.143,22.095]
[1688288005486,22.084,19.155,19.143,22.095]
[1688288006194,22.083,19.156,19.143,22.095]
[1688288007091,22.083,19.156,19.144,55.0]
[1688288007393,110.9333213,19.168,19.147,78.966]
[1688288007583,22.079,19.158,19.147,78.966]
[1688288007775,22.079,19.158,19.151,22.087]
[1688288007978,22.079,19.159,19.151,22.087]
[1688288008187,56.827,19.164,19.151,78.95]
[1688288008390,55.0,19.16,19.151,78.95]
[1688288008593,22.079,19.158,19.151,78.95]
[1688288009001,22.078,19.159,19.151,78.95]
[1688288009995,22.078,19.159,19.151,22.087]
[1688288012398,22.078,19.159,19.149,22.088]
[1688288012696,22.078,19.159,19.148,98.9506]
[1688288013199,22.078,19.159,19.146,56.878]
[1688288013400,22.078,19.159,19.15,22.088]
[1688288019497,21.893,19.159,19.15,22.088]
[1688288019706,21.893,19.159,19.133,25.90414298]
[1688288019903,55.0,19.158,19.138,258.4625]
[1688288020095,182.694,19.152,19.14,22.099]
[1688288020404,182.694,19.152,19.138,97.7435]
[1688288020590,182.694,19.152,19.14,22.1]
[1688288021598,125.834,19.152,19.14,22.1]
[1688288021785,22.086,19.152,19.14,22.1]
[1688288023113,55.0,19.151,19.14,78.996]
[1688288023409,22.091,19.148,19.14,22.1]
[1688288024313,21.591,19.148,19.14,22.099]
[1688288024514,21.591,19.148,19.133,103.85]
[1688288024515,21.591,19.148,19.136,56.906]
[1688288024804,55.0,19.151,19.14,78.995]
[1688288025012,78.961,19.148,19.14,22.099]
[1688288025193,78.961,19.148,19.136,56.907]
[1688288025513,78.961,19.148,19.136,22.104]
[1688288026215,78.961,19.148,19.136,79.012]
[1688288026416,22.091,19.148,19.136,79.012]
[1688288026593,22.091,19.148,19.136,22.104]
[1688288027503,79.003,19.148,19.136,22.104]
[1688288028803,160.599,19.154,19.136,22.104]
[1688288029007,22.091,19.148,19.136,22.104]
[1688288029700,44.182,19.148,19.136,22.104]
[1688288029906,103.719,19.158,19.136,22.104]
[1688288030208,22.089,19.15,19.137,55.0]
[1688288030410,22.089,19.15,19.14,78.992]
[1688288030606,103.719,19.158,19.141,55.0]
[1688288030812,22.073,19.164,19.146,78.971]
[1688288031000,22.073,19.163,19.147,55.0]
[1688288031205,20.0,19.162,19.151,78.947]
[1688288031610,42.075,19.162,19.151,78.947]
[1688288032126,98.906,19.162,19.151,78.947]
[1688288032329,202.6,19.162,19.151,22.086]
[1688288032621,98.906,19.162,19.151,22.086]
[1688288032823,98.906,19.162,19.141,90.4773]
[1688288033019,98.906,19.162,19.15,22.087]
[1688288035417,98.906,19.162,19.15,22.088]
[1688288035621,55.0,19.161,19.144,103.791]
[1688288035821,22.081,19.156,19.144,160.674]
[1688288036513,22.081,19.156,19.149,22.089]
[1688288039321,22.081,19.157,19.149,22.089]
[1688288040033,22.079,19.159,19.149,125.854]
[1688288040227,56.821,19.163,19.149,125.854]
[1688288040530,64.58962173,19.17,19.155,182.665]
[1688288040531,22.07,19.167,19.155,182.665]
[1688288040912,22.065,19.17,19.161,78.907]
[1688288041333,22.065,19.17,19.161,22.075]
[1688288041529,100.972,19.17,19.161,22.075]
[1688288042015,100.972,19.17,19.15,19.25]
[1688288042217,204.623,19.17,19.154,103.736]
[1688288042824,204.623,19.17,19.157,22.079]
[1688288043515,204.623,19.17,19.155,22.081]
[1688288043829,22.072,19.164,19.156,22.08]
[1688288044431,22.072,19.164,19.155,22.082]
[1688288044735,22.072,19.164,19.156,22.081]
[1688288044938,20.0,19.163,19.152,22.085]
[1688288045128,78.915,19.16,19.151,22.087]
[1688288045348,78.915,19.16,19.15,22.088]
[1688288046741,22.077,19.16,19.15,22.087]
[1688288047034,22.077,19.16,19.15,78.953]
[1688288047230,22.077,19.16,19.15,22.087]
[1688288049627,22.077,19.16,19.15,22.088]
[1688288050330,22.077,19.16,19.15,78.954]
[1688288050738,22.077,19.16,19.15,22.088]
[1688288052131,22.077,19.16,19.15,78.954]
[1688288052536,22.077,19.16,19.15,22.088]
[1688288052850,22.077,19.16,19.149,22.089]
[1688288053034,22.077,19.16,19.144,103.787]
[1688288053231,22.077,19.16,19.145,55.0]
[1688288053434,22.077,19.16,19.15,22.088]
[1688288054234,22.077,19.16,19.15,78.954]
[1688288055844,51.68714022,19.175,19.15,98.264]
[1688288056047,22.069,19.167,19.151,75.0]
[1688288056256,56.807,19.171,19.155,182.659]
[1688288056543,22.069,19.167,19.159,22.078]
[1688288056945,22.069,19.167,19.155,56.851]
[1688288057240,22.069,19.167,19.157,22.08]
[1688288059242,22.069,19.167,19.157,182.647]
[1688288059926,22.069,19.167,19.157,22.08]
[1688288060147,22.069,19.167,19.15,123.185]
[1688288060354,22.069,19.167,19.155,22.082]
[1688288061547,22.069,19.167,19.155,78.933]
[1688288064455,22.069,19.167,19.155,182.665]
[1688288064840,22.069,19.167,19.155,22.082]
[1688288066948,75.0,19.166,19.155,22.082]
[1688288067251,78.903,19.163,19.154,22.083]
[1688288069458,78.902,19.163,19.153,22.085]
[1688288070047,78.902,19.163,19.145,10.83719922]
[1688288070241,78.902,19.163,19.15,22.087]
[1688288075158,22.074,19.163,19.15,125.846]
[1688288075450,22.074,19.163,19.154,78.936]
[1688288075834,25.6759681,19.172,19.154,182.674]
[1688288076034,22.07,19.166,19.159,22.077]
[1688288076456,22.07,19.167,19.159,78.917]
[1688288077752,160.539,19.171,19.159,78.917]
[1688288077753,22.068,19.168,19.159,78.917]
[1688288078952,22.068,19.168,19.159,22.077]
[1688288081858,20.0,19.167,19.14,38.64]
[1688288082057,78.911,19.161,19.15,22.087]
[1688288082570,74.43,19.16,19.14,22.099]
[1688288082751,182.676,19.154,19.131,200.4102]
[1688288083062,182.734,19.148,19.136,22.103]
[1688288083949,239.648,19.148,19.136,22.103]
[1688288084455,55.0,19.147,19.136,22.103]
[1688288084768,78.98,19.144,19.136,22.103]
[1688288085166,78.98,19.144,19.131,200.4102]
[1688288085355,78.98,19.144,19.136,22.104]
[1688288085862,22.096,19.144,19.136,22.104]
[1688288086358,22.095,19.145,19.136,79.012]
[1688288086564,22.094,19.146,19.136,79.012]
[1688288086751,22.093,19.147,19.136,79.012]
[1688288087146,22.092,19.148,19.136,79.012]
[1688288087346,22.09,19.149,19.141,22.098]
[1688288087548,182.724,19.149,19.132,56.919]
[1688288087761,20.0,19.148,19.133,22.107]
[1688288087969,182.776,19.144,19.131,113.9408]
[1688288088157,20.0,19.143,19.131,91.8318]
[1688288088466,22.099,19.141,19.132,79.028]
[1688288088665,22.099,19.141,19.132,22.108]
[1688288090251,78.992,19.141,19.132,22.108]
[1688288091663,182.8,19.141,19.128,91.8318]
[1688288091867,55.0,19.14,19.127,22.114]
[1688288092070,79.012,19.137,19.127,22.114]
[1688288094260,22.104,19.137,19.127,22.114]
[1688288097372,26.0329412,19.146,19.127,22.114]
[1688288097574,20.0,19.145,19.127,22.114]
[1688288097766,22.1,19.14,19.127,22.114]
[1688288098977,125.914,19.14,19.127,22.114]
[1688288099177,22.1,19.14,19.127,22.114]
[1688288099566,22.099,19.141,19.133,22.108]
[1688288100079,22.098,19.142,19.133,22.108]
[1688288100275,22.097,19.143,19.133,22.108]
[1688288102369,56.876,19.148,19.133,22.108]
[1688288102878,22.095,19.144,19.133,22.108]
[1688288103080,22.095,19.145,19.133,22.108]
[1688288104979,78.976,19.145,19.133,22.107]
[1688288105971,22.095,19.145,19.133,22.107]
[1688288106175,78.976,19.145,19.133,22.107]
[1688288106662,22.095,19.145,19.133,79.024]
[1688288107891,22.094,19.145,19.133,79.024]
[1688288109463,22.094,19.146,19.134,55.0]
[1688288109768,22.094,19.146,19.137,79.006]
[1688288110479,56.876,19.148,19.137,79.006]
[1688288110663,22.082,19.156,19.142,78.986]
[1688288111459,22.082,19.156,19.14,19.43]
[1688288111460,22.082,19.156,19.146,78.968]
[1688288117086,22.082,19.156,19.146,22.092]
[1688288118267,22.082,19.156,19.143,98.9635]
[1688288118467,22.082,19.156,19.146,22.092]
[1688288121688,22.082,19.156,19.14,56.894]
[1688288121983,78.949,19.152,19.142,22.097]
[1688288123580,78.949,19.152,19.138,56.902]
[1688288124188,78.949,19.152,19.142,22.097]
[1688288126699,78.949,19.152,19.136,56.908]
[1688288126895,55.0,19.151,19.14,22.1]
[1688288127197,78.964,19.148,19.14,22.1]
[1688288127691,78.964,19.148,19.134,103.842]
[1688288127897,78.964,19.148,19.14,22.099]
[1688288128994,22.091,19.148,19.14,22.099]
[1688288129194,22.09,19.149,19.14,22.099]
[1688288129400,56.857,19.154,19.141,55.0]
[1688288129698,22.089,19.15,19.141,77.098]
[1688288129889,22.089,19.15,19.141,55.0]
[1688288130089,125.848,19.15,19.136,56.905]
[1688288130304,125.848,19.15,19.141,22.098]
[1688288130798,22.089,19.15,19.141,22.098]
[1688288131598,55.0,19.154,19.141,22.098]
[1688288131787,22.09,19.149,19.141,22.098]
[1688288132297,22.09,19.149,19.144,22.095]
[1688288132672,55.0,19.154,19.144,22.095]
[1688288132878,24.65453787,19.198,19.147,22.091]
[1688288132879,22.083,19.155,19.147,22.091]
[1688288133495,103.702,19.161,19.147,22.091]
[1688288133686,22.08,19.157,19.147,22.091]
[1688288135194,78.926,19.157,19.147,22.091]
[1688288136986,87.87330295,19.157,19.145,22.093]
[1688288137182,78.926,19.157,19.138,103.819]
[1688288137392,83.94730295,19.156,19.137,56.902]
[1688288137588,78.953,19.151,19.141,22.098]
[1688288138001,22.088,19.151,19.141,22.098]
[1688288139196,22.088,19.151,19.133,103.12689922]
[1688288139392,31.06132465,19.151,19.136,22.104]
[1688288139593,8.97332465,19.15,19.136,22.104]
[1688288139899,22.093,19.146,19.136,22.104]
[1688288142793,22.093,19.146,19.136,79.012]
[1688288142986,22.093,19.146,19.136,22.104]
[1688288143195,22.093,19.146,19.12,38.75]
[1688288143399,22.093,19.146,19.122,95.7927]
[1688288143400,75.0,19.145,19.122,95.7927]
[1688288143598,79.004,19.139,19.128,22.113]
[1688288146593,79.004,19.139,19.124,56.944]
[1688288146797,87.97732465,19.139,19.127,22.114]
[1688288147093,79.018,19.135,19.127,22.114]
[1688288147298,79.018,19.135,19.126,22.115]
[1688288147688,79.018,19.135,19.12,123.34]
[1688288147689,182.901,19.131,19.12,22.122]
[1688288148000,74.43,19.13,19.111,90.8187]
[1688288148308,79.061,19.125,19.114,22.129]
[1688288148901,22.118,19.125,19.114,22.129]
[1688288149204,126.013,19.125,19.106,56.995]
[1688288149410,126.013,19.125,19.104,104.008]
[1688288149411,79.076,19.121,19.107,56.991]
[1688288149586,79.076,19.121,19.112,22.131]
[1688288149786,28.40332465,19.12,19.101,194.8427]
[1688288149988,22.13,19.115,19.106,22.139]
[1688288150206,79.1,19.115,19.101,251.8547]
[1688288150395,79.1,19.115,19.103,22.142]
[1688288152508,22.13,19.115,19.103,22.142]
[1688288152919,22.13,19.115,19.104,55.0]
[1688288153200,22.13,19.115,19.107,22.138]
[1688288153607,38.69,19.14,19.114,22.13]
[1688288153800,56.926,19.13,19.119,22.124]
[1688288154105,19.36,19.14,19.119,22.124]
[1688288154106,38.69,19.133,19.119,22.124]
[1688288154290,22.113,19.129,19.119,22.124]
[1688288155488,125.986,19.129,19.119,22.124]
[1688288155689,125.986,19.129,19.113,56.974]
[1688288155907,125.986,19.129,19.111,94.1638]
[1688288156105,134.95932465,19.129,19.112,22.131]
[1688288156305,8.97332465,19.128,19.112,22.131]
[1688288156611,79.065,19.124,19.112,22.131]
[1688288158107,22.119,19.124,19.112,22.131]
[1688288158310,56.921,19.132,19.113,55.0]
[1688288158499,38.69,19.133,19.119,79.083]
[1688288158696,22.111,19.131,19.12,94.2057]
[1688288158898,22.111,19.131,19.123,79.064]
[1688288159795,22.111,19.131,19.123,22.118]
[1688288159999,79.034,19.131,19.118,56.959]
[1688288160504,38.69,19.133,19.121,79.074]
[1688288160810,22.111,19.131,19.121,79.074]
[1688288160997,56.911,19.136,19.124,22.117]
[1688288161306,22.11,19.132,19.124,22.117]
[1688288162610,22.109,19.133,19.124,32.95419922]
[1688288162993,22.109,19.133,19.124,22.117]
[1688288164603,22.107,19.134,19.124,22.117]
[1688288165105,22.106,19.135,19.124,32.95419922]
[1688288165300,56.906,19.138,19.125,55.0]
[1688288165608,22.1,19.14,19.128,182.917]
[1688288165796,56.882,19.145,19.129,55.0]
[1688288165997,20.0,19.144,19.133,22.107]
[1688288166201,182.801,19.141,19.129,97.1182]
[1688288166508,22.1,19.141,19.129,22.112]
[1688288166715,78.993,19.141,19.129,22.112]
[1688288167415,135.881,19.141,19.129,22.112]
[1688288167609,239.689,19.141,19.129,22.112]
[1688288170300,78.993,19.141,19.133,22.108]
[1688288170699,78.993,19.141,19.132,22.109]
[1688288171418,133.993,19.141,19.131,22.11]
[1688288171616,19.51,19.14,19.128,22.113]
[1688288171821,79.011,19.137,19.127,22.114]
[1688288172016,79.011,19.137,19.128,22.113]
[1688288173420,79.011,19.137,19.123,22.118]
[1688288173719,22.109,19.133,19.123,22.118]
[1688288177803,182.877,19.133,19.121,22.121]
[1688288178004,182.877,19.133,19.12,22.122]
[1688288178618,22.113,19.129,19.12,22.122]
[1688288179920,22.113,19.129,19.121,22.122]
[1688288181614,22.113,19.129,19.113,90.9104]
[1688288181615,22.113,19.129,19.117,22.126]
[1688288181816,79.068,19.123,19.109,56.986]
[1688288182030,79.068,19.123,19.112,22.132]
[1688288183425,22.12,19.123,19.112,22.132]
[1688288184206,126.026,19.123,19.112,22.132]
[1688288184520,126.026,19.123,19.103,22.142]
[1688288184521,19.43,19.12,19.103,22.142]
[1688288184716,183.056,19.115,19.102,22.143]
[1688288185030,79.118,19.111,19.102,22.143]
[1688288186026,79.118,19.111,19.098,57.019]
[1688288186322,79.118,19.111,19.091,259.0889]
[1688288186530,74.51,19.11,19.096,22.15]
[1688288186824,79.137,19.106,19.096,22.15]
[1688288187026,79.137,19.106,19.091,202.0469]
[1688288187027,79.137,19.106,19.091,97.9679]
[1688288187321,79.137,19.106,19.066,26.43892018]
[1688288187516,79.137,19.106,19.086,57.054]
[1688288187913,79.137,19.106,19.09,22.157]
[1688288188117,19.51,19.11,19.09,22.157]
[1688288188118,183.188,19.101,19.09,22.157]
[1688288188320,183.188,19.101,19.087,22.16]
[1688288189217,183.188,19.101,19.085,22.163]
[1688288189425,55.0,19.1,19.084,22.165]
[1688288189732,183.239,19.096,19.084,22.164]
[1688288189909,79.182,19.096,19.084,22.164]
[1688288190239,57.012,19.102,19.084,183.345]
[1688288190527,56.997,19.107,19.09,19.51]
[1688288190834,103.983,19.109,19.097,22.149]
[1688288190835,22.144,19.102,19.097,22.149]
[1688288191019,57.009,19.103,19.094,22.153]
[1688288191224,22.144,19.102,19.094,22.153]
[1688288191527,55.73880689,19.117,19.094,22.153]
[1688288191528,22.144,19.103,19.094,22.153]
[1688288192625,22.141,19.105,19.094,126.217]
[1688288192831,26.53492073,19.117,19.094,126.217]
[1688288193023,41.645,19.11,19.094,22.153]
[1688288193331,126.111,19.11,19.094,22.153]
[1688288195029,183.144,19.11,19.094,22.153]
[1688288195226,183.144,19.11,19.094,126.217]
[1688288195613,183.144,19.11,19.094,22.153]
[1688288195813,22.141,19.105,19.094,22.153]
[1688288196838,55.0,19.104,19.093,22.154]
[1688288197030,79.158,19.101,19.093,22.154]
[1688288197216,22.145,19.101,19.093,22.154]
[1688288197534,103.988,19.108,19.093,79.19]
[1688288197835,22.142,19.104,19.093,79.19]
[1688288198625,161.013,19.11,19.093,79.19]
[1688288198626,22.14,19.106,19.093,79.19]
[1688288199528,22.135,19.11,19.093,79.19]
[1688288199832,56.971,19.115,19.093,79.19]
[1688288200134,22.131,19.114,19.104,104.009]
[1688288200452,22.126,19.118,19.105,22.14]
[1688288200738,22.125,19.119,19.105,77.14]
[1688288201031,22.125,19.119,19.105,22.14]
[1688288201533,79.073,19.119,19.105,22.14]
[1688288201944,79.073,19.119,19.1,19.45]
[1688288202117,79.073,19.119,19.099,57.015]
[1688288202433,79.073,19.119,19.103,22.142]
[1688288202823,55.0,19.118,19.103,22.142]
[1688288203023,79.105,19.114,19.103,22.142]
[1688288203538,22.13,19.114,19.103,79.148]
[1688288204429,22.13,19.114,19.103,22.142]
[1688288206138,22.13,19.114,19.103,126.157]
[1688288206318,8.98989697,19.118,19.103,126.157]
[1688288207639,22.13,19.115,19.103,126.157]
[1688288210643,22.13,19.115,19.103,22.142]
[1688288210832,22.134,19.111,19.1,94.6615]
[1688288211039,74.43,19.11,19.088,104.091]
[1688288211222,74.43,19.11,19.091,22.156]
[1688288211223,183.145,19.105,19.091,22.156]
[1688288211427,75.0,19.104,19.084,57.063]
[1688288211625,79.169,19.098,19.082,161.196]
[1688288211850,79.169,19.098,19.086,22.161]
[1688288214538,22.148,19.098,19.087,55.0]
[1688288214743,22.148,19.099,19.091,22.156]
[1688288215233,57.006,19.103,19.091,22.156]
[1688288215234,22.147,19.1,19.091,22.156]
[1688288215943,57.006,19.104,19.091,22.156]
[1688288216143,22.146,19.1,19.091,22.156]
[1688288217646,57.006,19.104,19.091,22.156]
[1688288218531,58.6583,19.117,19.091,22.156]
[1688288218850,20.0,19.116,19.099,22.147]
[1688288219231,20.0,19.116,19.099,126.183]
[1688288219545,20.958307,19.116,19.099,126.183]
[1688288219731,20.958307,19.116,19.1,74.51]
[1688288219935,25.92019086,19.127,19.104,183.147]
[1688288220229,19.36,19.13,19.104,183.147]
[1688288220431,25.920191,19.127,19.104,183.147]
[1688288220848,20.0,19.126,19.104,183.147]
[1688288221548,20.0,19.126,19.105,55.0]
[1688288221738,20.0,19.126,19.111,183.084]
[1688288222552,25.920191,19.127,19.111,183.084]
[1688288223053,25.920191,19.127,19.111,273.662]
[1688288223238,25.920191,19.127,19.112,55.0]
[1688288223549,25.93479062,19.137,19.116,183.034]
[1688288223736,9.83,19.14,19.116,183.034]
[1688288223940,35.4271253,19.14,19.116,183.034]
[1688288224137,9.83,19.14,19.116,183.034]
[1688288224538,55.234602,19.14,19.116,183.034]
[1688288225254,20.0,19.139,19.116,183.034]
[1688288226048,55.0,19.138,19.116,183.034]
[1688288226248,20.0,19.137,19.116,183.034]
[1688288226445,55.0,19.136,19.116,183.034]
[1688288226840,20.0,19.135,19.116,183.034]
[1688288227052,55.0,19.134,19.116,183.034]
[1688288227552,55.0,19.134,19.116,79.093]
[1688288227739,55.0,19.134,19.116,22.127]
[1688288228049,9.71,19.13,19.115,22.128]
[1688288228257,75.0,19.129,19.105,103.999]
[1688288228433,9.71,19.13,19.111,22.133]
[1688288228635,55.0,19.129,19.111,22.133]
[1688288228859,20.0,19.128,19.111,22.133]
[1688288229043,55.0,19.127,19.111,22.133]
[1688288229373,20.0,19.126,19.111,22.133]
[1688288229543,55.0,19.127,19.111,22.133]
[1688288229748,55.0,19.127,19.112,90.243]
[1688288229941,55.0,19.127,19.116,79.093]
[1688288231049,25.77832612,19.136,19.116,79.093]
[1688288231353,20.0,19.135,19.116,79.093]
[1688288232245,9.77,19.13,19.115,22.128]
[1688288232453,20.0,19.129,19.104,104.005]
[1688288232641,9.71,19.12,19.102,4.42864873]
[1688288232841,55.0,19.119,19.106,22.139]
[1688288233655,20.954799,19.12,19.106,22.139]
[1688288234349,20.954799,19.12,19.106,116.5463]
[1688288234551,20.954799,19.12,19.106,127.38349922]
[1688288234752,26.09737087,19.135,19.11,183.088]
[1688288234936,9.83,19.14,19.118,183.018]
[1688288235140,8.98989697,19.145,19.118,183.018]
[1688288235438,3.52872,19.144,19.126,79.051]
[1688288235837,8.98989697,19.143,19.126,79.051]
[1688288236045,20.0,19.142,19.126,79.051]
[1688288236247,22.103,19.137,19.126,79.051]
[1688288236452,22.106,19.135,19.126,79.051]
[1688288236639,20.0,19.134,19.126,22.115]
[1688288236839,22.107,19.134,19.126,22.115]
[1688288237545,79.046,19.134,19.126,22.115]
[1688288238052,56.939,19.134,19.126,22.115]
[1688288238259,56.893,19.142,19.126,22.115]
[1688288238659,56.939,19.137,19.126,22.115]
[1688288239160,103.787,19.145,19.126,22.115]
[1688288239161,22.102,19.139,19.126,22.115]
[1688288239767,78.987,19.139,19.126,22.115]
[1688288241860,56.88,19.146,19.126,22.115]
[1688288242047,103.771,19.148,19.126,22.115]
[1688288242048,160.644,19.148,19.126,22.115]
[1688288242357,20.0,19.147,19.126,22.115]
[1688288242976,20.0,19.147,19.127,55.0]
[1688288243163,22.095,19.145,19.133,182.876]
[1688288243366,20.0,19.144,19.133,182.876]
[1688288243552,22.097,19.143,19.133,182.876]
[1688288243746,20.0,19.144,19.134,94.5629]
[1688288243961,22.095,19.145,19.137,22.103]
[1688288244164,22.094,19.146,19.137,22.103]
[1688288244357,22.094,19.145,19.137,22.103]
[1688288244754,56.939,19.148,19.137,22.103]
[1688288245361,22.092,19.148,19.137,22.103]
[1688288245967,22.09,19.149,19.137,22.103]
[1688288246671,135.819,19.149,19.137,22.103]
[1688288247761,22.094,19.145,19.12,9.78]
[1688288247971,22.099,19.141,19.127,103.882]
[1688288248163,78.992,19.141,19.128,56.93]
[1688288248350,22.104,19.137,19.132,22.108]
[1688288248555,56.888,19.143,19.132,22.108]